[Event "FIDE World Cadets GU10 2022"]
[Site "Batumi"]
[Date "2022.09.17"]
[Round "2.21"]
[White "Amanzhol, Khanzada"]
[Black "Li, Iris"]
[Result "1-0"]
[ECO "E63"]
[WhiteElo "1241"]
[BlackElo "1651"]
[Annotator "NA COMBH"]
[PlyCount "121"]
[EventDate "2022.09.16"]
[EventType "swiss"]
[EventCountry "GEO"]
[SourceTitle "playchess.com"]
[Source "ChessBase"]
[SourceQuality "1"]
[TimeControl "5400+30"]

1. d4 {[%emt 0:01:00]} Nf6 {[%emt 0:01:00]} 2. Nf3 {[%emt 0:01:30]} g6 {[%emt 0:00:30]} 3. g3 {[%emt 0:00:30]} Bg7 {[%emt 0:00:00]} 4. Bg2 {[%emt 0:00:30]} O-O {[%emt 0:00:00]} 5. O-O {[%emt 0:00:30]} d6 {[%emt 0:00:00]} 6. c4 {[%emt 0:01:30]} Nc6 {[%emt 0:00:00]} 7. Nc3 {[%emt 0:00:30]} a6 {[%emt 0:00:00]} 8. Bd2 {[%emt 0:05:30]} Bd7 {[%emt 0:03:00]} 9. Rc1 {[%emt 0:06:30]} Rb8 {[%emt 0:07:30]} 10. d5 {[%emt 0:05:30]} Na5 {[%emt 0:04:30]} 11. b3 {[%emt 0:06:30]} c5 {[%emt 0:00:30]} 12. e4 {[%emt 0:03:30]} b5 {[%emt 0:03:30]} 13. cxb5 {[%emt 0:04:30]} axb5 {[%emt 0:00:30]} 14. e5 {[%emt 0:02:30]} Ng4 {[%emt 0:19:30]} 15. exd6 {[%emt 0:01:30]} exd6 {[%emt 0:00:30]} 16. Ne4 {[%emt 0:04:30]} Nb7 {[%emt 0:03:30]} 17. Bf4 {[%emt 0:06:30]} Bf5 {[%emt 0:06:30]} 18. Nh4 {[%emt 0:04:30]} Bxe4 {[%emt 0:04:30]} 19. Bxe4 {[%emt 0:00:30]} f5 {[%emt 0:03:30]} 20. Bd3 {[%emt 0:05:30]} b4 {[%emt 0:05:30]} 21. Nf3 {[%emt 0:01:30]} h6 {[%emt 0:03:30]} 22. Nh4 {[%emt 0:05:30]} Qf6 {[%emt 0:06:30]} 23. Kg2 {[%emt 0:06:30]} Nd8 {[%emt 0:04:30]} 24. Re1 {[%emt 0:05:30]} Kh7 {[%emt 0:06:28]} 25. Nxf5 {[%emt 0:02:36]} Nxf2 {[%emt 0:03:59]} 26. Kxf2 {[%emt 0:00:34]} gxf5 {[%emt 0:00:00]} 27. Kg2 {[%emt 0:01:20]} Ra8 {[%emt 0:06:33]} 28. Rc2 {[%emt 0:02:55]} Ra7 {[%emt 0:02:46]} 29. Rf2 {[%emt 0:01:14]} Kh8 {[%emt 0:03:17]} 30. Be3 {[%emt 0:00:32]} Qe5 {[%emt 0:01:12]} 31. Bb1 {[%emt 0:01:01]} Re7 {[%emt 0:01:03]} 32. Ree2 {[%emt 0:01:30]} Qc3 {[%emt 0:01:16]} 33. Rf3 {[%emt 0:03:50]} f4 {[%emt 0:01:16]} 34. Bxf4 {[%emt 0:00:42]} Rxe2+ {[%emt 0:00:10]} 35. Qxe2 {[%emt 0:00:30]} Qd4 {[%emt 0:00:07]} 36. Qc2 {[%emt 0:00:13]} Kg8 {[%emt 0:00:54]} 37. Qh7+ {[%emt 0:00:30]} Kf7 {[%emt 0:00:30]} 38. Be5+ {[%emt 0:00:00]} Ke8 {[%emt 0:00:04]} 39. Bxd4 {[%emt 0:00:01]} Rxf3 {[%emt 0:00:40]} 40. Kxf3 {[%emt 0:00:07]} Bxd4 {[%emt 0:00:44]} 41. Bg6+ {[%emt 0:00:30]} Kf8 {[%emt 0:00:30]} 42. Qd7 {[%emt 0:00:30]} Bf6 {[%emt 0:00:00]} 43. Qxd6+ {[%emt 0:00:00]} Be7 {[%emt 0:00:00]} 44. Qf4+ {[%emt 0:00:08]} Kg7 {[%emt 0:00:14]} 45. d6 {[%emt 0:00:00]} Bg5 {[%emt 0:00:00]} 46. Qf5 {[%emt 0:00:16]} Bf6 {[%emt 0:00:28]} 47. d7 {[%emt 0:00:30]} Be7 {[%emt 0:00:00]} 48. Qe5+ {[%emt 0:00:45]} Bf6 {[%emt 0:00:50]} 49. Qe8 {[%emt 0:00:30]} Bg5 {[%emt 0:00:30]} 50. h4 {[%emt 0:00:30]} Bf6 {[%emt 0:00:00]} 51. Kg4 {[%emt 0:00:00]} h5+ {[%emt 0:01:41]} 52. Bxh5 {[%emt 0:00:17]} c4 {[%emt 0:00:30]} 53. bxc4 {[%emt 0:00:30]} b3 {[%emt 0:00:30]} 54. axb3 {[%emt 0:00:00]} Kh7 {[%emt 0:00:17]} 55. Qg6+ {[%emt 0:00:00]} Kh8 {[%emt 0:00:30]} 56. Qxf6+ {[%emt 0:00:26]} Kh7 {[%emt 0:00:30]} 57. Qxd8 {[%emt 0:00:00]} Kg7 {[%emt 0:00:00]} 58. Qe7+ {[%emt 0:00:01]} Kh6 {[%emt 0:00:21]} 59. Qf6+ {[%emt 0:00:30]} Kh7 {[%emt 0:00:00]} 60. Qg6+ {[%emt 0:00:01]} Kh8 {[%emt 0:00:00]} 61. d8=R# {[%emt 0:00:30]} 1-0

[Event "FIDE World Cadets GU10 2022"]
[Site "Batumi"]
[Date "2022.09.17"]
[Round "2.22"]
[White "Bassari, Senem Gul"]
[Black "Sahin, Zeynep Duru"]
[Result "1-0"]
[ECO "C80"]
[WhiteElo "1536"]
[BlackElo "1255"]
[Annotator "NA COMBH"]
[PlyCount "155"]
[EventDate "2022.09.16"]
[EventType "swiss"]
[EventCountry "GEO"]
[SourceTitle "playchess.com"]
[Source "ChessBase"]
[SourceQuality "1"]
[TimeControl "5400+30"]

1. e4 {[%emt 0:01:00]} e5 {[%emt 0:01:00]} 2. Nf3 {[%emt 0:00:30]} Nc6 {[%emt 0:00:30]} 3. Bb5 {[%emt 0:00:30]} a6 {[%emt 0:00:30]} 4. Ba4 {[%emt 0:00:30]} Nf6 {[%emt 0:00:30]} 5. O-O {[%emt 0:00:00]} Nxe4 {[%emt 0:00:00]} 6. Re1 {[%emt 0:01:00]} Nc5 {[%emt 0:02:00]} 7. Bxc6 {[%emt 0:03:30]} dxc6 {[%emt 0:02:30]} 8. Nxe5 {[%emt 0:01:30]} Ne6 {[%emt 0:06:30]} 9. Qf3 {[%emt 0:02:30]} Qf6 {[%emt 0:03:30]} 10. Qxf6 {[%emt 0:02:30]} gxf6 {[%emt 0:01:30]} 11. Nf3 {[%emt 0:03:30]} Bd7 {[%emt 0:08:30]} 12. d3 {[%emt 0:08:30]} O-O-O {[%emt 0:03:30]} 13. Be3 {[%emt 0:01:30]} Bd6 {[%emt 0:02:30]} 14. Nbd2 {[%emt 0:02:30]} f5 {[%emt 0:02:30]} 15. Nc4 {[%emt 0:01:30]} f6 {[%emt 0:06:30]} 16. Nd4 {[%emt 0:05:30]} Nc5 {[%emt 0:10:30]} 17. Nxd6+ {[%emt 0:04:30]} cxd6 {[%emt 0:00:30]} 18. Bf4 {[%emt 0:00:30]} Kc7 {[%emt 0:08:30]} 19. b4 {[%emt 0:03:30]} Na4 {[%emt 0:01:30]} 20. Ne6+ {[%emt 0:03:30]} Bxe6 {[%emt 0:01:30]} 21. Rxe6 {[%emt 0:00:30]} Rhf8 {[%emt 0:01:30]} 22. Rae1 {[%emt 0:04:30]} Nc3 {[%emt 0:03:30]} 23. Bd2 {[%emt 0:01:30]} Nb5 {[%emt 0:04:30]} 24. c3 {[%emt 0:00:30]} d5 {[%emt 0:03:30]} 25. a4 {[%emt 0:03:30]} Nd6 {[%emt 0:00:30]} 26. Bf4 {[%emt 0:00:30]} Rf7 {[%emt 0:03:30]} 27. c4 {[%emt 0:00:30]} dxc4 {[%emt 0:05:03]} 28. dxc4 {[%emt 0:00:30]} a5 {[%emt 0:04:10]} 29. c5 {[%emt 0:00:00]} axb4 {[%emt 0:00:30]} 30. Bxd6+ {[%emt 0:01:00]} Kc8 {[%emt 0:01:43]} 31. Rb1 {[%emt 0:00:30]} b5 {[%emt 0:00:57]} 32. Rxb4 {[%emt 0:00:30]} Ra7 {[%emt 0:00:00]} 33. Rb1 {[%emt 0:00:30]} Rxa4 {[%emt 0:00:41]} 34. g3 {[%emt 0:01:30]} Kb7 {[%emt 0:00:40]} 35. Re7+ {[%emt 0:00:30]} Ka6 {[%emt 0:00:30]} 36. Rc7 {[%emt 0:00:30]} b4 {[%emt 0:00:30]} 37. Rxc6+ {[%emt 0:00:00]} Kb5 {[%emt 0:00:09]} 38. Rb6+ {[%emt 0:01:00]} Kc4 {[%emt 0:01:12]} 39. Kg2 {[%emt 0:00:30]} h5 {[%emt 0:00:17]} 40. c6 {[%emt 0:03:30]} Rxd6 {[%emt 0:00:34]} 41. c7 {[%emt 0:00:30]} Rxb6 {[%emt 0:00:30]} 42. c8=Q+ {[%emt 0:00:00]} Kb5 {[%emt 0:00:24]} 43. Qxf5+ {[%emt 0:00:00]} Ka6 {[%emt 0:00:00]} 44. Rc1 {[%emt 0:00:30]} b3 {[%emt 0:00:20]} 45. Qc8+ {[%emt 0:00:30]} Ka5 {[%emt 0:00:00]} 46. Qf5+ {[%emt 0:01:30]} Rb5 {[%emt 0:00:00]} 47. Rc5 {[%emt 0:00:30]} Rab4 {[%emt 0:00:02]} 48. Rxb5+ {[%emt 0:06:30]} Rxb5 {[%emt 0:00:18]} 49. Qb1 {[%emt 0:01:30]} b2 {[%emt 0:01:17]} 50. Kf1 {[%emt 0:01:30]} Rb3 {[%emt 0:00:15]} 51. Ke2 {[%emt 0:03:30]} Ka4 {[%emt 0:00:58]} 52. Kd2 {[%emt 0:01:30]} Ka3 {[%emt 0:00:19]} 53. Kc2 {[%emt 0:02:30]} Rb6 {[%emt 0:04:31]} 54. Qh1 {[%emt 0:06:30]} b1=Q+ {[%emt 0:02:33]} 55. Qxb1 {[%emt 0:00:39]} Rxb1 {[%emt 0:00:38]} 56. Kxb1 {[%emt 0:00:30]} Kb3 {[%emt 0:00:30]} 57. Kc1 {[%emt 0:00:30]} Kc3 {[%emt 0:00:30]} 58. Kd1 {[%emt 0:00:30]} Kd3 {[%emt 0:00:30]} 59. Ke1 {[%emt 0:00:30]} f5 {[%emt 0:04:13]} 60. Kf1 {[%emt 0:05:42]} Ke4 {[%emt 0:01:56]} 61. Kg2 {[%emt 0:02:58]} f4 {[%emt 0:01:10]} 62. f3+ {[%emt 0:01:35]} Kf5 {[%emt 0:01:37]} 63. gxf4 {[%emt 0:00:42]} Kxf4 {[%emt 0:00:12]} 64. h4 {[%emt 0:03:37]} Kf5 {[%emt 0:00:35]} 65. Kf1 {[%emt 0:01:27]} Ke5 {[%emt 0:01:05]} 66. Ke2 {[%emt 0:00:30]} Kf4 {[%emt 0:00:00]} 67. Kf2 {[%emt 0:00:10]} Ke5 {[%emt 0:01:04]} 68. Ke3 {[%emt 0:00:51]} Kf5 {[%emt 0:00:00]} 69. f4 {[%emt 0:01:51]} Kg4 {[%emt 0:00:00]} 70. Ke4 {[%emt 0:00:47]} Kxh4 {[%emt 0:00:00]} 71. f5 {[%emt 0:00:40]} Kg3 {[%emt 0:00:26]} 72. f6 {[%emt 0:00:30]} h4 {[%emt 0:00:30]} 73. f7 {[%emt 0:00:30]} h3 {[%emt 0:00:00]} 74. f8=Q {[%emt 0:00:00]} Kg2 {[%emt 0:00:00]} 75. Qf3+ {[%emt 0:00:00]} Kh2 {[%emt 0:00:30]} 76. Qf2+ {[%emt 0:00:00]} Kh1 {[%emt 0:00:06]} 77. Kf3 {[%emt 0:00:00]} h2 {[%emt 0:00:30]} 78. Qg2# {[%emt 0:00:30]} 1-0

[Event "FIDE World Cadets GU10 2022"]
[Site "Batumi"]
[Date "2022.09.17"]
[Round "2.23"]
[White "Kutateladze, Anastasia"]
[Black "Fang, Arabella"]
[Result "1/2-1/2"]
[ECO "B28"]
[WhiteElo "1231"]
[BlackElo "1505"]
[Annotator "NA COMBH"]
[PlyCount "105"]
[EventDate "2022.09.16"]
[EventType "swiss"]
[EventCountry "GEO"]
[SourceTitle "playchess.com"]
[Source "ChessBase"]
[SourceQuality "1"]
[TimeControl "5400+30"]

1. e4 {[%emt 0:01:00]} c5 {[%emt 0:01:00]} 2. Nf3 {[%emt 0:00:30]} a6 {[%emt 0:00:30]} 3. d4 {[%emt 0:00:30]} cxd4 {[%emt 0:00:30]} 4. Nxd4 {[%emt 0:00:30]} Nf6 {[%emt 0:00:30]} 5. Nc3 {[%emt 0:00:00]} e5 {[%emt 0:00:00]} 6. Nb3 {[%emt 0:00:00]} Bb4 {[%emt 0:00:00]} 7. Bd3 {[%emt 0:00:00]} d6 {[%emt 0:03:30]} 8. Bd2 {[%emt 0:04:00]} Qc7 {[%emt 0:03:30]} 9. a3 {[%emt 0:03:30]} Bxc3 {[%emt 0:02:30]} 10. Bxc3 {[%emt 0:00:30]} Be6 {[%emt 0:06:30]} 11. Nd2 {[%emt 0:04:30]} Nbd7 {[%emt 0:02:30]} 12. O-O {[%emt 0:03:30]} Nc5 {[%emt 0:03:30]} 13. Re1 {[%emt 0:02:30]} Na4 {[%emt 0:04:30]} 14. Nb1 {[%emt 0:04:30]} O-O {[%emt 0:03:30]} 15. Qd2 {[%emt 0:04:30]} Rac8 {[%emt 0:04:30]} 16. Ba5 {[%emt 0:12:30]} b6 {[%emt 0:04:30]} 17. Bc3 {[%emt 0:00:30]} a5 {[%emt 0:02:30]} 18. Bb5 {[%emt 0:07:30]} Nc5 {[%emt 0:01:30]} 19. f3 {[%emt 0:08:30]} Bd7 {[%emt 0:05:30]} 20. Bxd7 {[%emt 0:06:30]} Qxd7 {[%emt 0:01:30]} 21. Rd1 {[%emt 0:00:30]} Rfd8 {[%emt 0:00:30]} 22. Qe3 {[%emt 0:00:30]} Qb5 {[%emt 0:05:30]} 23. b3 {[%emt 0:05:30]} Ne6 {[%emt 0:04:30]} 24. Rd2 {[%emt 0:05:30]} Nf4 {[%emt 0:12:30]} 25. g3 {[%emt 0:02:30]} N4d5 {[%emt 0:07:30]} 26. exd5 {[%emt 0:03:50]} Nxd5 {[%emt 0:00:32]} 27. a4 {[%emt 0:01:41]} Qc6 {[%emt 0:02:00]} 28. Qd3 {[%emt 0:01:33]} Nxc3 {[%emt 0:01:03]} 29. Nxc3 {[%emt 0:00:30]} Qxc3 {[%emt 0:00:07]} 30. Qxc3 {[%emt 0:01:07]} Rxc3 {[%emt 0:00:06]} 31. Rad1 {[%emt 0:00:18]} Rc6 {[%emt 0:02:12]} 32. c4 {[%emt 0:00:13]} f6 {[%emt 0:01:29]} 33. Kf2 {[%emt 0:00:30]} Kf7 {[%emt 0:00:06]} 34. Rd5 {[%emt 0:00:47]} Ke6 {[%emt 0:02:06]} 35. Ke3 {[%emt 0:00:21]} f5 {[%emt 0:03:14]} 36. h3 {[%emt 0:01:52]} Rc5 {[%emt 0:01:50]} 37. h4 {[%emt 0:02:08]} g6 {[%emt 0:02:19]} 38. R1d2 {[%emt 0:00:10]} Ke7 {[%emt 0:01:25]} 39. Rd1 {[%emt 0:01:28]} Rxd5 {[%emt 0:00:50]} 40. Rxd5 {[%emt 0:00:18]} Rc8 {[%emt 0:00:34]} 41. Rb5 {[%emt 0:00:19]} Rc6 {[%emt 0:01:13]} 42. Kd3 {[%emt 0:01:18]} h6 {[%emt 0:03:14]} 43. Ke3 {[%emt 0:00:11]} g5 {[%emt 0:01:25]} 44. hxg5 {[%emt 0:01:51]} hxg5 {[%emt 0:00:30]} 45. Rd5 {[%emt 0:00:00]} Rc5 {[%emt 0:00:23]} 46. Rd1 {[%emt 0:00:09]} Rc8 {[%emt 0:02:26]} 47. Rh1 {[%emt 0:00:30]} f4+ {[%emt 0:00:30]} 48. gxf4 {[%emt 0:00:30]} gxf4+ {[%emt 0:00:30]} 49. Ke4 {[%emt 0:00:00]} Kd7 {[%emt 0:00:09]} 50. Kd5 {[%emt 0:00:46]} Rc5+ {[%emt 0:00:30]} 51. Ke4 {[%emt 0:00:00]} Rc8 {[%emt 0:00:35]} 52. Kd5 {[%emt 0:00:00]} Rc5+ {[%emt 0:01:05]} 53. Ke4 {[%emt 0:00:00]} 1/2-1/2

[Event "FIDE World Cadets GU10 2022"]
[Site "Batumi"]
[Date "2022.09.17"]
[Round "2.24"]
[White "Venskaya, Nika"]
[Black "Tong, Thai Hoang An"]
[Result "1-0"]
[ECO "D04"]
[WhiteElo "1470"]
[BlackElo "1238"]
[Annotator "NA COMBH"]
[PlyCount "54"]
[EventDate "2022.09.16"]
[EventType "swiss"]
[EventCountry "GEO"]
[SourceTitle "playchess.com"]
[Source "ChessBase"]
[SourceQuality "1"]
[TimeControl "5400+30"]

1. d4 {[%emt 0:01:00]} d5 {[%emt 0:01:00]} 2. Nf3 {[%emt 0:01:30]} c5 {[%emt 0:00:00]} 3. e3 {[%emt 0:00:00]} Nf6 {[%emt 0:01:00]} 4. b3 {[%emt 0:01:00]} cxd4 {[%emt 0:03:30]} 5. exd4 {[%emt 0:00:30]} Nc6 {[%emt 0:00:30]} 6. Bb2 {[%emt 0:00:30]} Bf5 {[%emt 0:01:30]} 7. Bd3 {[%emt 0:02:30]} Bxd3 {[%emt 0:00:30]} 8. Qxd3 {[%emt 0:00:30]} Qa5+ {[%emt 0:02:30]} 9. Bc3 {[%emt 0:08:30]} Qc7 {[%emt 0:01:30]} 10. O-O {[%emt 0:02:30]} e6 {[%emt 0:02:30]} 11. a3 {[%emt 0:06:30]} Bd6 {[%emt 0:02:30]} 12. Bb2 {[%emt 0:05:30]} O-O {[%emt 0:02:30]} 13. Re1 {[%emt 0:02:30]} Ne4 {[%emt 0:01:30]} 14. c4 {[%emt 0:02:30]} f5 {[%emt 0:05:30]} 15. Nc3 {[%emt 0:05:30]} Qf7 {[%emt 0:05:30]} 16. Ne2 {[%emt 0:04:30]} Rad8 {[%emt 0:02:30]} 17. Rad1 {[%emt 0:02:30]} Qh5 {[%emt 0:12:30]} 18. Ne5 {[%emt 0:04:30]} f4 {[%emt 0:21:30]} 19. f3 {[%emt 0:04:30]} Bxe5 {[%emt 0:07:30]} 20. dxe5 {[%emt 0:01:30]} Nc5 {[%emt 0:00:30]} 21. Qc3 {[%emt 0:01:30]} dxc4 {[%emt 0:16:15]} 22. Qxc4 {[%emt 0:01:30]} Nxe5 {[%emt 0:01:18]} 23. Qc3 {[%emt 0:05:30]} Rxd1 {[%emt 0:01:17]} 24. Rxd1 {[%emt 0:00:00]} Rf5 {[%emt 0:00:56]} 25. b4 {[%emt 0:03:00]} Rg5 {[%emt 0:01:41]} 26. Kh1 {[%emt 0:09:30]} Qh4 {[%emt 0:04:11]} 27. Qxc5 {[%emt 0:05:02]} Nc6 {[%emt 0:01:52]} 1-0

[Event "FIDE World Cadets GU10 2022"]
[Site "Batumi"]
[Date "2022.09.17"]
[Round "2.25"]
[White "Omirserik, Alima"]
[Black "Mirzakhani, Bahar"]
[Result "0-1"]
[ECO "B35"]
[WhiteElo "1224"]
[BlackElo "1461"]
[Annotator "NA COMBH"]
[PlyCount "106"]
[EventDate "2022.09.16"]
[EventType "swiss"]
[EventCountry "GEO"]
[SourceTitle "playchess.com"]
[Source "ChessBase"]
[SourceQuality "1"]
[TimeControl "5400+30"]

1. e4 {[%emt 0:01:00]} c5 {[%emt 0:01:00]} 2. Nf3 {[%emt 0:00:30]} Nc6 {[%emt 0:00:30]} 3. d4 {[%emt 0:00:30]} cxd4 {[%emt 0:00:30]} 4. Nxd4 {[%emt 0:00:30]} g6 {[%emt 0:00:30]} 5. Nc3 {[%emt 0:00:30]} Bg7 {[%emt 0:00:30]} 6. Be3 {[%emt 0:00:00]} Nf6 {[%emt 0:00:00]} 7. Bc4 {[%emt 0:00:00]} Qa5 {[%emt 0:00:00]} 8. f3 {[%emt 0:00:30]} Qb4 {[%emt 0:08:30]} 9. Bb3 {[%emt 0:05:30]} O-O {[%emt 0:09:30]} 10. Qd2 {[%emt 0:00:30]} Nxd4 {[%emt 0:06:30]} 11. Qxd4 {[%emt 0:05:30]} Qa5 {[%emt 0:00:30]} 12. Qd2 {[%emt 0:01:30]} d6 {[%emt 0:01:30]} 13. O-O-O {[%emt 0:00:30]} Be6 {[%emt 0:05:30]} 14. Nd5 {[%emt 0:05:30]} Qxd2+ {[%emt 0:02:30]} 15. Rxd2 {[%emt 0:00:30]} Nxd5 {[%emt 0:00:30]} 16. Bxd5 {[%emt 0:01:30]} Bxd5 {[%emt 0:01:30]} 17. Rxd5 {[%emt 0:00:30]} b6 {[%emt 0:00:30]} 18. Kb1 {[%emt 0:05:30]} Rac8 {[%emt 0:05:30]} 19. h4 {[%emt 0:08:30]} h5 {[%emt 0:00:30]} 20. Rhd1 {[%emt 0:04:30]} Bf6 {[%emt 0:02:30]} 21. Bg5 {[%emt 0:01:30]} Bxg5 {[%emt 0:01:30]} 22. Rxg5 {[%emt 0:00:30]} Kg7 {[%emt 0:01:30]} 23. Rgd5 {[%emt 0:07:30]} Rc5 {[%emt 0:04:30]} 24. Rxc5 {[%emt 0:01:30]} bxc5 {[%emt 0:00:00]} 25. e5 {[%emt 0:00:30]} Rd8 {[%emt 0:01:00]} 26. c4 {[%emt 0:00:30]} f6 {[%emt 0:00:30]} 27. exd6 {[%emt 0:01:30]} exd6 {[%emt 0:00:30]} 28. Re1 {[%emt 0:00:30]} Kf7 {[%emt 0:00:30]} 29. Kc2 {[%emt 0:00:00]} g5 {[%emt 0:01:30]} 30. hxg5 {[%emt 0:00:00]} fxg5 {[%emt 0:00:00]} 31. Kd3 {[%emt 0:01:30]} Kf6 {[%emt 0:01:00]} 32. Re2 {[%emt 0:02:30]} Kf5 {[%emt 0:00:30]} 33. Re7 {[%emt 0:00:30]} a5 {[%emt 0:00:30]} 34. g3 {[%emt 0:00:30]} Rh8 {[%emt 0:01:30]} 35. Ke3 {[%emt 0:02:30]} a4 {[%emt 0:03:30]} 36. Ra7 {[%emt 0:02:30]} h4 {[%emt 0:05:30]} 37. Kf2 {[%emt 0:06:30]} Rb8 {[%emt 0:01:30]} 38. gxh4 {[%emt 0:01:30]} gxh4 {[%emt 0:02:30]} 39. Rxa4 {[%emt 0:03:30]} Rxb2+ {[%emt 0:00:30]} 40. Kg1 {[%emt 0:00:00]} Kf4 {[%emt 0:00:30]} 41. Ra6 {[%emt 0:01:00]} Kg3 {[%emt 0:00:30]} 42. Kf1 {[%emt 0:00:30]} Kxf3 {[%emt 0:00:00]} 43. Ke1 {[%emt 0:00:30]} h3 {[%emt 0:00:00]} 44. Rxd6 {[%emt 0:00:00]} h2 {[%emt 0:00:30]} 45. Rf6+ {[%emt 0:15:26]} Kg2 {[%emt 0:00:00]} 46. Rg6+ {[%emt 0:00:44]} Kh1 {[%emt 0:00:00]} 47. a4 {[%emt 0:01:35]} Rg2 {[%emt 0:00:30]} 48. Rf6 {[%emt 0:00:00]} Rc2 {[%emt 0:01:30]} 49. a5 {[%emt 0:01:34]} Kg1 {[%emt 0:00:30]} 50. Rg6+ {[%emt 0:03:06]} Rg2 {[%emt 0:00:30]} 51. Rh6 {[%emt 0:02:38]} h1=Q {[%emt 0:00:30]} 52. Rxh1+ {[%emt 0:00:06]} Kxh1 {[%emt 0:00:00]} 53. a6 {[%emt 0:00:30]} Ra2 {[%emt 0:00:00]} 0-1

[Event "FIDE World Cadets GU10 2022"]
[Site "Batumi"]
[Date "2022.09.17"]
[Round "2.26"]
[White "Siskou, Evangelia"]
[Black "Harutyunyan, Gabriela"]
[Result "1-0"]
[ECO "B31"]
[WhiteElo "1421"]
[BlackElo "1228"]
[Annotator "NA COMBH"]
[PlyCount "66"]
[EventDate "2022.09.16"]
[EventType "swiss"]
[EventCountry "GEO"]
[SourceTitle "playchess.com"]
[Source "ChessBase"]
[SourceQuality "1"]
[TimeControl "5400+30"]

1. e4 {[%emt 0:01:00]} c5 {[%emt 0:01:00]} 2. Nf3 {[%emt 0:00:30]} Nc6 {[%emt 0:00:30]} 3. Bb5 {[%emt 0:00:30]} g6 {[%emt 0:00:00]} 4. Bxc6 {[%emt 0:00:30]} bxc6 {[%emt 0:00:00]} 5. c3 {[%emt 0:00:30]} Bg7 {[%emt 0:00:30]} 6. d4 {[%emt 0:00:30]} cxd4 {[%emt 0:00:00]} 7. cxd4 {[%emt 0:00:30]} Nf6 {[%emt 0:01:00]} 8. Nc3 {[%emt 0:00:30]} d6 {[%emt 0:05:30]} 9. O-O {[%emt 0:00:30]} O-O {[%emt 0:01:30]} 10. Bd2 {[%emt 0:08:30]} Bg4 {[%emt 0:00:30]} 11. h3 {[%emt 0:01:30]} Bxf3 {[%emt 0:02:30]} 12. Qxf3 {[%emt 0:00:30]} Qb6 {[%emt 0:02:30]} 13. Qe3 {[%emt 0:06:30]} Qxb2 {[%emt 0:10:30]} 14. Rab1 {[%emt 0:00:30]} Qa3 {[%emt 0:00:30]} 15. Nd5 {[%emt 0:01:30]} Qa4 {[%emt 0:09:30]} 16. Nxe7+ {[%emt 0:10:30]} Kh8 {[%emt 0:00:30]} 17. e5 {[%emt 0:00:30]} dxe5 {[%emt 0:01:30]} 18. dxe5 {[%emt 0:00:30]} Nd5 {[%emt 0:02:30]} 19. Nxd5 {[%emt 0:00:30]} cxd5 {[%emt 0:00:30]} 20. a3 {[%emt 0:02:30]} d4 {[%emt 0:02:30]} 21. Qg3 {[%emt 0:05:30]} Rfe8 {[%emt 0:04:30]} 22. Rbe1 {[%emt 0:13:30]} Rac8 {[%emt 0:08:30]} 23. Bb4 {[%emt 0:08:30]} d3 {[%emt 0:07:30]} 24. Qxd3 {[%emt 0:03:30]} Rxe5 {[%emt 0:05:30]} 25. Rxe5 {[%emt 0:01:30]} Bxe5 {[%emt 0:00:30]} 26. Qd5 {[%emt 0:01:30]} f6 {[%emt 0:05:30]} 27. f4 {[%emt 0:02:30]} Bb2 {[%emt 0:01:30]} 28. Qf7 {[%emt 0:08:30]} Qa6 {[%emt 0:08:20]} 29. Re1 {[%emt 0:01:52]} Qb6+ {[%emt 0:01:46]} 30. Kh2 {[%emt 0:00:08]} Qb8 {[%emt 0:00:38]} 31. Kh1 {[%emt 0:01:48]} Qa8 {[%emt 0:02:51]} 32. Re7 {[%emt 0:01:15]} Rc1+ {[%emt 0:01:58]} 33. Kh2 {[%emt 0:00:27]} Qd8 {[%emt 0:01:17]} 1-0

[Event "FIDE World Cadets GU10 2022"]
[Site "Batumi"]
[Date "2022.09.17"]
[Round "2.27"]
[White "Chichinadze, Anastasia"]
[Black "Xu, Luna Yuexiu"]
[Result "1-0"]
[ECO "B25"]
[WhiteElo "1220"]
[BlackElo "1421"]
[Annotator "NA COMBH"]
[PlyCount "87"]
[EventDate "2022.09.16"]
[EventType "swiss"]
[EventCountry "GEO"]
[SourceTitle "playchess.com"]
[Source "ChessBase"]
[SourceQuality "1"]
[TimeControl "5400+30"]

1. e4 {[%emt 0:01:00]} c5 {[%emt 0:01:00]} 2. Nc3 {[%emt 0:00:30]} Nc6 {[%emt 0:00:30]} 3. g3 {[%emt 0:00:30]} g6 {[%emt 0:00:30]} 4. Bg2 {[%emt 0:00:30]} Bg7 {[%emt 0:00:30]} 5. Nge2 {[%emt 0:00:30]} Nf6 {[%emt 0:00:00]} 6. d3 {[%emt 0:00:00]} d6 {[%emt 0:00:00]} 7. O-O {[%emt 0:00:00]} O-O {[%emt 0:00:30]} 8. h3 {[%emt 0:00:00]} e5 {[%emt 0:01:30]} 9. Be3 {[%emt 0:00:00]} Ne7 {[%emt 0:03:30]} 10. f4 {[%emt 0:04:30]} Nd7 {[%emt 0:03:30]} 11. Kh2 {[%emt 0:06:30]} f5 {[%emt 0:04:30]} 12. a4 {[%emt 0:05:30]} a6 {[%emt 0:01:30]} 13. a5 {[%emt 0:01:30]} Nc6 {[%emt 0:01:30]} 14. exf5 {[%emt 0:03:30]} gxf5 {[%emt 0:00:00]} 15. fxe5 {[%emt 0:01:30]} Ndxe5 {[%emt 0:01:00]} 16. Qd2 {[%emt 0:04:30]} Be6 {[%emt 0:05:30]} 17. Nf4 {[%emt 0:02:30]} Bf7 {[%emt 0:02:30]} 18. Bd5 {[%emt 0:06:30]} Bxd5 {[%emt 0:01:30]} 19. Ncxd5 {[%emt 0:02:30]} Re8 {[%emt 0:03:30]} 20. Nb6 {[%emt 0:02:30]} Rb8 {[%emt 0:01:30]} 21. Nh5 {[%emt 0:02:30]} Qe7 {[%emt 0:07:30]} 22. Nxg7 {[%emt 0:10:30]} Qxg7 {[%emt 0:01:30]} 23. Rxf5 {[%emt 0:05:30]} Rf8 {[%emt 0:01:30]} 24. Raf1 {[%emt 0:04:30]} Rxf5 {[%emt 0:02:30]} 25. Rxf5 {[%emt 0:00:30]} Qg6 {[%emt 0:00:30]} 26. Qf2 {[%emt 0:03:30]} Qe6 {[%emt 0:05:30]} 27. Rf6 {[%emt 0:06:30]} Qe7 {[%emt 0:03:30]} 28. Bh6 {[%emt 0:03:30]} Nd4 {[%emt 0:05:30]} 29. Nd5 {[%emt 0:01:30]} Nef3+ {[%emt 0:02:30]} 30. Rxf3 {[%emt 0:04:03]} Nxf3+ {[%emt 0:01:30]} 31. Qxf3 {[%emt 0:00:06]} Qf7 {[%emt 0:03:30]} 32. Nf6+ {[%emt 0:03:01]} Kh8 {[%emt 0:00:00]} 33. Qf4 {[%emt 0:01:18]} Rf8 {[%emt 0:00:00]} 34. Bxf8 {[%emt 0:00:13]} Qxf8 {[%emt 0:01:30]} 35. Nh5 {[%emt 0:00:20]} Qe7 {[%emt 0:02:30]} 36. Qf6+ {[%emt 0:00:11]} Qxf6 {[%emt 0:00:30]} 37. Nxf6 {[%emt 0:00:30]} Kg7 {[%emt 0:00:30]} 38. Ne4 {[%emt 0:00:00]} Kf7 {[%emt 0:01:30]} 39. Nxd6+ {[%emt 0:00:00]} Ke6 {[%emt 0:00:30]} 40. Nxb7 {[%emt 0:00:23]} Kd5 {[%emt 0:00:30]} 41. g4 {[%emt 0:00:13]} Kc6 {[%emt 0:00:30]} 42. Nd8+ {[%emt 0:00:30]} Kb5 {[%emt 0:00:00]} 43. g5 {[%emt 0:00:03]} Kxa5 {[%emt 0:00:00]} 44. h4 {[%emt 0:00:00]} 1-0